[Event "Early-Titled-Tuesday-Blitz-October-03-2023"]
[Site "Chess.com"]
[Date "2023.10.03"]
[Round "6"]
[White "Gyulamiryan-koryun"]
[Black "ajedrez-facil"]
[Result "1/2-1/2"]
[WhiteElo "2003"]
[BlackElo "2270"]
[TimeControl "180+1"]
[EndTime "9:08:22 PDT"]
[Termination "Game drawn by repetition"]

1. e4 {[%clk 0:02:58.2]} 1... c5 {[%clk 0:02:51.6]} 2. Nf3 {[%clk 0:02:57.7]}
2... d6 {[%clk 0:02:51.5]} 3. d4 {[%clk 0:02:58]} 3... cxd4 {[%clk 0:02:52.4]}
4. Nxd4 {[%clk 0:02:57.6]} 4... Nf6 {[%clk 0:02:53.1]} 5. Nc3 {[%clk 0:02:57.6]}
5... g6 {[%clk 0:02:52.9]} 6. Be3 {[%clk 0:02:57.5]} 6... Bg7 {[%clk 0:02:53]}
7. Qd2 {[%clk 0:02:57]} 7... O-O {[%clk 0:02:52.1]} 8. f3 {[%clk 0:02:56.7]}
8... Nc6 {[%clk 0:02:51.8]} 9. O-O-O {[%clk 0:02:55.7]} 9... Nxd4 {[%clk
0:02:51.1]} 10. Bxd4 {[%clk 0:02:55]} 10... Be6 {[%clk 0:02:51.8]} 11. Kb1
{[%clk 0:02:52]} 11... Qc7 {[%clk 0:02:43]} 12. Be3 {[%clk 0:02:49.4]} 12...
Rfc8 {[%clk 0:02:42.4]} 13. Bh6 {[%clk 0:02:47.6]} 13... a6 {[%clk 0:02:37.5]}
14. Bxg7 {[%clk 0:02:46.1]} 14... Kxg7 {[%clk 0:02:37.9]} 15. g4 {[%clk
0:02:45.3]} 15... b5 {[%clk 0:02:37.3]} 16. h4 {[%clk 0:02:43.4]} 16... h5
{[%clk 0:02:37.4]} 17. gxh5 {[%clk 0:02:21.4]} 17... Nxh5 {[%clk 0:02:38.3]} 18.
Qd4+ {[%clk 0:02:11.8]} 18... Kh7 {[%clk 0:02:21.3]} 19. Rc1 {[%clk 0:02:09.8]}
19... Qc5 {[%clk 0:02:21]} 20. Ne2 {[%clk 0:02:03.5]} 20... Bc4 {[%clk
0:02:08.2]} 21. c3 {[%clk 0:01:55]} 21... Qxd4 {[%clk 0:01:45.1]} 22. cxd4
{[%clk 0:01:49]} 22... Bxe2 {[%clk 0:01:39.8]} 23. Bxe2 {[%clk 0:01:48.9]} 23...
Ng3 {[%clk 0:01:35]} 24. Rhe1 {[%clk 0:01:47.1]} 24... Nxe2 {[%clk 0:01:29.8]}
25. Rxe2 {[%clk 0:01:45.8]} 25... Rxc1+ {[%clk 0:01:30.7]} 26. Kxc1 {[%clk
0:01:45.8]} 26... Rc8+ {[%clk 0:01:31.4]} 27. Kd2 {[%clk 0:01:45.9]} 27... Kh6
{[%clk 0:01:31.1]} 28. Ke3 {[%clk 0:01:44.8]} 28... Kh5 {[%clk 0:01:30.4]} 29.
Kf4 {[%clk 0:01:40.9]} 29... Rc1 {[%clk 0:01:25.9]} 30. Rg2 {[%clk 0:01:38.6]}
30... Rd1 {[%clk 0:01:22.6]} 31. d5 {[%clk 0:01:35.4]} 31... Rc1 {[%clk
0:01:12.4]} 32. a3 {[%clk 0:01:30]} 32... a5 {[%clk 0:01:11.5]} 33. Kg3 {[%clk
0:01:13.6]} 33... b4 {[%clk 0:01:07.4]} 34. axb4 {[%clk 0:01:12.7]} 34... axb4
{[%clk 0:01:08.3]} 35. Rd2 {[%clk 0:01:00.3]} 35... Rg1+ {[%clk 0:01:05.2]} 36.
Kf2 {[%clk 0:00:56.6]} 36... Rh1 {[%clk 0:01:03.8]} 37. Kg2 {[%clk 0:00:52.8]}
37... Rb1 {[%clk 0:00:59]} 38. Kg3 {[%clk 0:00:51.5]} 38... f6 {[%clk
0:00:58.7]} 39. f4 {[%clk 0:00:40.1]} 39... Rg1+ {[%clk 0:00:53.3]} 40. Kh2
{[%clk 0:00:37.1]} 40... Rf1 {[%clk 0:00:43]} 41. Kg3 {[%clk 0:00:36.9]} 41...
Rb1 {[%clk 0:00:43.6]} 42. Kh3 {[%clk 0:00:34.1]} 42... Rh1+ {[%clk 0:00:37.5]}
43. Kg3 {[%clk 0:00:32.4]} 43... Rxh4 {[%clk 0:00:38.4]} 44. Rd4 {[%clk
0:00:31.7]} 44... Rg4+ {[%clk 0:00:26.6]} 45. Kf3 {[%clk 0:00:30.1]} 45... Rh4
{[%clk 0:00:26.7]} 46. Rxb4 {[%clk 0:00:29.6]} 46... Rh3+ {[%clk 0:00:27.3]} 47.
Kg2 {[%clk 0:00:28.7]} 47... Rd3 {[%clk 0:00:24.2]} 48. Rb7 {[%clk 0:00:26.1]}
48... Kg4 {[%clk 0:00:23.7]} 49. Kf2 {[%clk 0:00:18]} 49... Kxf4 {[%clk
0:00:22.3]} 50. Rxe7 {[%clk 0:00:13.5]} 50... Rd2+ {[%clk 0:00:22.5]} 51. Ke1
{[%clk 0:00:12.6]} 51... Rxb2 {[%clk 0:00:22.7]} 52. Re6 {[%clk 0:00:09.1]}
52... Rg2 {[%clk 0:00:12.5]} 53. Rxf6+ {[%clk 0:00:08.5]} 53... Kxe4 {[%clk
0:00:13.1]} 54. Rxd6 {[%clk 0:00:09.2]} 54... Ke5 {[%clk 0:00:13.8]} 55. Rd8
{[%clk 0:00:09.6]} 55... Rg1+ {[%clk 0:00:14.2]} 56. Kf2 {[%clk 0:00:09.5]}
56... Rg4 {[%clk 0:00:14.9]} 57. Kf3 {[%clk 0:00:09.9]} 57... Rf4+ {[%clk
0:00:15.2]} 58. Kg3 {[%clk 0:00:09.7]} 58... Rd4 {[%clk 0:00:15.5]} 59. Rg8
{[%clk 0:00:09.3]} 59... Kf5 {[%clk 0:00:15.6]} 60. Rf8+ {[%clk 0:00:09.1]}
60... Kg5 {[%clk 0:00:16.1]} 61. Rd8 {[%clk 0:00:09.4]} 61... Rd3+ {[%clk
0:00:16.6]} 62. Kf2 {[%clk 0:00:08.9]} 62... Kg4 {[%clk 0:00:17.1]} 63. Rg8
{[%clk 0:00:08.4]} 63... g5 {[%clk 0:00:17.3]} 64. Rd8 {[%clk 0:00:07.2]} 64...
Rd4 {[%clk 0:00:17.3]} 65. d6 {[%clk 0:00:07.4]} 65... Rd2+ {[%clk 0:00:16.1]}
66. Ke3 {[%clk 0:00:06.8]} 66... Rd1 {[%clk 0:00:16.8]} 67. Ke4 {[%clk 0:00:07]}
67... Kg3 {[%clk 0:00:16.8]} 68. d7 {[%clk 0:00:06.7]} 68... g4 {[%clk
0:00:17.3]} 69. Ke5 {[%clk 0:00:06.6]} 69... Kg2 {[%clk 0:00:16]} 70. Ke6 {[%clk
0:00:06.4]} 70... Re1+ {[%clk 0:00:14.5]} 71. Kd6 {[%clk 0:00:05.8]} 71... Rd1+
{[%clk 0:00:14.7]} 72. Ke6 {[%clk 0:00:04.8]} 72... Re1+ {[%clk 0:00:15.2]} 73.
Kd6 {[%clk 0:00:05.4]} 73... Rd1+ {[%clk 0:00:15.8]} 74. Ke6 {[%clk 0:00:06.1]}
1/2-1/2

[Event "Early-Titled-Tuesday-Blitz-October-03-2023"]
[Site "Chess.com"]
[Date "2023.10.03"]
[Round "6"]
[White "dropstoneDP"]
[Black "Zohid6"]
[Result "1-0"]
[WhiteElo "3116"]
[BlackElo "2799"]
[TimeControl "180+1"]
[EndTime "9:08:26 PDT"]
[Termination "dropstoneDP won by resignation"]

1. e4 {[%clk 0:03:00.9]} 1... e6 {[%clk 0:03:00]} 2. d4 {[%clk 0:03:00.7]} 2...
d5 {[%clk 0:03:00.9]} 3. Nc3 {[%clk 0:03:00.4]} 3... Nf6 {[%clk 0:02:36.1]} 4.
e5 {[%clk 0:03:00.5]} 4... Nfd7 {[%clk 0:02:34.8]} 5. f4 {[%clk 0:03:01]} 5...
c5 {[%clk 0:02:35.4]} 6. Nf3 {[%clk 0:03:01.3]} 6... Nc6 {[%clk 0:02:36]} 7. Be3
{[%clk 0:03:01.7]} 7... Qb6 {[%clk 0:02:36.6]} 8. Na4 {[%clk 0:03:01.1]} 8...
Qa5+ {[%clk 0:02:36.3]} 9. c3 {[%clk 0:03:01.7]} 9... b6 {[%clk 0:02:36.6]} 10.
Bd2 {[%clk 0:02:37.4]} 10... c4 {[%clk 0:02:30.4]} 11. b4 {[%clk 0:02:36.7]}
11... Nxb4 {[%clk 0:02:27.1]} 12. cxb4 {[%clk 0:02:34.8]} 12... Bxb4 {[%clk
0:02:28]} 13. Bxb4 {[%clk 0:02:18.7]} 13... Qxb4+ {[%clk 0:02:27.9]} 14. Kf2
{[%clk 0:02:19]} 14... b5 {[%clk 0:02:27.1]} 15. Nc5 {[%clk 0:02:19.2]} 15...
Nxc5 {[%clk 0:02:27.2]} 16. dxc5 {[%clk 0:02:20.1]} 16... Qxc5+ {[%clk
0:02:28.1]} 17. Qd4 {[%clk 0:02:18.1]} 17... Qxd4+ {[%clk 0:02:28.5]} 18. Nxd4
{[%clk 0:02:19]} 18... b4 {[%clk 0:02:25.8]} 19. a3 {[%clk 0:02:04.9]} 19... b3
{[%clk 0:02:25.4]} 20. Ke3 {[%clk 0:02:05.4]} 20... a5 {[%clk 0:02:25.4]} 21.
Kd2 {[%clk 0:02:03.6]} 21... Bd7 {[%clk 0:02:25.5]} 22. Kc3 {[%clk 0:02:03.7]}
22... f6 {[%clk 0:02:26]} 23. Be2 {[%clk 0:02:03.4]} 23... O-O {[%clk
0:02:21.7]} 24. Rhf1 {[%clk 0:02:03.1]} 24... Rab8 {[%clk 0:02:21.1]} 25. Rab1
{[%clk 0:01:59.1]} 25... a4 {[%clk 0:02:20.5]} 26. Bg4 {[%clk 0:01:57.7]} 26...
Rb6 {[%clk 0:02:12.6]} 27. g3 {[%clk 0:01:52.4]} 27... h6 {[%clk 0:02:01.7]} 28.
Bh3 {[%clk 0:01:51]} 28... Kf7 {[%clk 0:01:57.5]} 29. Rb2 {[%clk 0:01:44.8]}
29... Ke7 {[%clk 0:01:50.1]} 30. Re1 {[%clk 0:01:40.7]} 30... f5 {[%clk
0:01:50.1]} 31. Rf1 {[%clk 0:01:20.5]} 31... g5 {[%clk 0:01:49.1]} 32. Bg2
{[%clk 0:01:16.5]} 32... Rg8 {[%clk 0:01:44.5]} 33. Bf3 {[%clk 0:01:16.1]} 33...
Rbb8 {[%clk 0:01:41.9]} 34. Rg2 {[%clk 0:01:08.2]} 34... Rbf8 {[%clk 0:01:28.9]}
35. Bd1 {[%clk 0:00:55.5]} 35... Rg7 {[%clk 0:01:19.8]} 36. Rgf2 {[%clk
0:00:52.4]} 36... Rfg8 {[%clk 0:01:19]} 37. g4 {[%clk 0:00:47.3]} 37... gxf4
{[%clk 0:01:12.3]} 38. gxf5 {[%clk 0:00:46.6]} 38... exf5 {[%clk 0:01:12.7]} 39.
Rxf4 {[%clk 0:00:45]} 39... Rg1 {[%clk 0:01:10.3]} 40. Be2 {[%clk 0:00:35.9]}
40... Rxf1 {[%clk 0:01:07.4]} 41. Bxf1 {[%clk 0:00:36.8]} 41... Rg1 {[%clk
0:01:03.5]} 42. Rf3 {[%clk 0:00:24.4]} 42... Be6 {[%clk 0:00:53.7]} 43. Rf4
{[%clk 0:00:23.4]} 43... h5 {[%clk 0:00:53.2]} 44. Rf2 {[%clk 0:00:17.6]} 44...
h4 {[%clk 0:00:49.5]} 45. Rf4 {[%clk 0:00:08]} 45... h3 {[%clk 0:00:47.3]} 46.
Rf3 {[%clk 0:00:08.1]} 46... Rh1 {[%clk 0:00:46.3]} 47. Rf2 {[%clk 0:00:08]}
47... Kd7 {[%clk 0:00:34.9]} 48. Bxh3 {[%clk 0:00:07.2]} 48... Ra1 {[%clk
0:00:32.6]} 49. Bxf5 {[%clk 0:00:03.9]} 49... Bxf5 {[%clk 0:00:32.5]} 50. Rxf5
{[%clk 0:00:04.8]} 50... Rxa3 {[%clk 0:00:31.3]} 51. e6+ {[%clk 0:00:05.3]}
51... Kd6 {[%clk 0:00:17.5]} 52. Re5 {[%clk 0:00:05.3]} 52... Kxe5 {[%clk
0:00:02.7]} 53. e7 {[%clk 0:00:05.7]} 53... b2+ {[%clk 0:00:02.7]} 54. Kxb2
{[%clk 0:00:05.9]} 54... Rh3 {[%clk 0:00:03.3]} 55. e8=Q+ {[%clk 0:00:05.9]}
55... Kxd4 {[%clk 0:00:03.8]} 56. Qe2 {[%clk 0:00:02.9]} 56... a3+ {[%clk
0:00:04.7]} 57. Ka2 {[%clk 0:00:03]} 57... Re3 {[%clk 0:00:05.6]} 58. Qd2+
{[%clk 0:00:03]} 58... Rd3 {[%clk 0:00:06.2]} 59. Qf4+ {[%clk 0:00:03.5]} 59...
Kc5 {[%clk 0:00:07]} 60. h4 {[%clk 0:00:03.8]} 60... d4 {[%clk 0:00:07.3]} 61.
h5 {[%clk 0:00:03.9]} 61... c3 {[%clk 0:00:08]} 62. Qc7+ {[%clk 0:00:03.5]}
62... Kd5 {[%clk 0:00:08.1]} 63. Qb7+ {[%clk 0:00:03.8]} 63... Kc4 {[%clk
0:00:08.2]} 64. Qa6+ {[%clk 0:00:04]} 64... Kb4 {[%clk 0:00:08.3]} 65. Qxd3
{[%clk 0:00:04.9]} 65... Kc5 {[%clk 0:00:09]} 66. h6 {[%clk 0:00:04.9]} 66... c2
{[%clk 0:00:09.8]} 67. Qxc2+ {[%clk 0:00:05.1]} 67... Kb4 {[%clk 0:00:09.6]} 68.
Qd2+ {[%clk 0:00:06]} 68... Kc4 {[%clk 0:00:10.1]} 69. h7 {[%clk 0:00:06.7]}
69... d3 {[%clk 0:00:11]} 70. h8=Q {[%clk 0:00:07]} 1-0

[Event "Early-Titled-Tuesday-Blitz-October-03-2023"]
[Site "Chess.com"]
[Date "2023.10.03"]
[Round "6"]
[White "ChessQueen"]
[Black "hellokostya"]
[Result "1/2-1/2"]
[WhiteElo "2723"]
[BlackElo "2552"]
[TimeControl "180+1"]
[EndTime "9:08:37 PDT"]
[Termination "Game drawn - insufficient material"]

1. e4 {[%clk 0:03:00.9]} 1... c5 {[%clk 0:02:58.5]} 2. c3 {[%clk 0:03:00.6]}
2... Nf6 {[%clk 0:02:58.1]} 3. e5 {[%clk 0:03:00.8]} 3... Nd5 {[%clk 0:02:57.6]}
4. Nf3 {[%clk 0:03:01.4]} 4... e6 {[%clk 0:02:54.4]} 5. d4 {[%clk 0:03:00.3]}
5... cxd4 {[%clk 0:02:55.3]} 6. cxd4 {[%clk 0:03:00.7]} 6... d6 {[%clk
0:02:55.1]} 7. Bc4 {[%clk 0:02:57.4]} 7... Be7 {[%clk 0:02:55.1]} 8. O-O {[%clk
0:02:56.7]} 8... O-O {[%clk 0:02:55.7]} 9. Qe2 {[%clk 0:02:47.8]} 9... Nd7
{[%clk 0:02:55.3]} 10. Bxd5 {[%clk 0:02:46.3]} 10... exd5 {[%clk 0:02:55.2]} 11.
Nc3 {[%clk 0:02:44.9]} 11... Nb6 {[%clk 0:02:54.6]} 12. h3 {[%clk 0:02:42]}
12... Be6 {[%clk 0:02:53]} 13. b3 {[%clk 0:02:36.6]} 13... Rc8 {[%clk
0:02:51.6]} 14. Bd2 {[%clk 0:02:31.9]} 14... Re8 {[%clk 0:02:51.1]} 15. Qd3
{[%clk 0:02:25.2]} 15... Qd7 {[%clk 0:02:49.8]} 16. Rfe1 {[%clk 0:02:15]} 16...
h6 {[%clk 0:02:45.8]} 17. Rac1 {[%clk 0:02:12.7]} 17... a6 {[%clk 0:02:43.7]}
18. exd6 {[%clk 0:02:01.3]} 18... Bxd6 {[%clk 0:02:44.6]} 19. Ne5 {[%clk
0:02:01.2]} 19... Qd8 {[%clk 0:02:23.8]} 20. Bf4 {[%clk 0:01:50.8]} 20... Qf6
{[%clk 0:02:18.4]} 21. Qg3 {[%clk 0:01:48.7]} 21... Ba3 {[%clk 0:02:14.8]} 22.
Rc2 {[%clk 0:01:41.8]} 22... Bf5 {[%clk 0:02:13.8]} 23. Rce2 {[%clk 0:01:38.3]}
23... Bb4 {[%clk 0:02:12.9]} 24. Re3 {[%clk 0:01:38.4]} 24... Kh7 {[%clk
0:02:06.3]} 25. R1e2 {[%clk 0:01:17.8]} 25... g5 {[%clk 0:01:53.9]} 26. Ng4
{[%clk 0:00:52.9]} 26... Bxg4 {[%clk 0:01:43.5]} 27. Be5 {[%clk 0:00:52.2]}
27... Rxe5 {[%clk 0:01:23.9]} 28. dxe5 {[%clk 0:00:44.9]} 28... Qe6 {[%clk
0:01:24.1]} 29. hxg4 {[%clk 0:00:34.8]} 29... d4 {[%clk 0:01:24.3]} 30. Ne4
{[%clk 0:00:34.7]} 30... dxe3 {[%clk 0:01:22.2]} 31. Nf6+ {[%clk 0:00:34.3]}
31... Kg7 {[%clk 0:01:06.1]} 32. Qxe3 {[%clk 0:00:31.6]} 32... Nd5 {[%clk
0:01:02.2]} 33. Nh5+ {[%clk 0:00:31.7]} 33... Kf8 {[%clk 0:01:02.4]} 34. Qe4
{[%clk 0:00:29.4]} 34... Be7 {[%clk 0:00:23.4]} 35. Qh7 {[%clk 0:00:24.4]} 35...
Qg6 {[%clk 0:00:23.7]} 36. Qh8+ {[%clk 0:00:23.1]} 36... Qg8 {[%clk 0:00:24.4]}
37. Qxh6+ {[%clk 0:00:23.4]} 37... Ke8 {[%clk 0:00:25.1]} 38. e6 {[%clk
0:00:18.7]} 38... Rc1+ {[%clk 0:00:18.9]} 39. Kh2 {[%clk 0:00:19]} 39... fxe6
{[%clk 0:00:14.4]} 40. Rxe6 {[%clk 0:00:18]} 40... Kd7 {[%clk 0:00:14.3]} 41.
Rg6 {[%clk 0:00:16.6]} 41... Qb8+ {[%clk 0:00:13]} 42. Ng3 {[%clk 0:00:16.2]}
42... Rc6 {[%clk 0:00:13.9]} 43. Rxc6 {[%clk 0:00:15.3]} 43... bxc6 {[%clk
0:00:14.6]} 44. Qh7 {[%clk 0:00:15.2]} 44... Qe5 {[%clk 0:00:12.9]} 45. Qd3
{[%clk 0:00:13.5]} 45... a5 {[%clk 0:00:11.5]} 46. a4 {[%clk 0:00:11.1]} 46...
Bd6 {[%clk 0:00:11.5]} 47. Qh7+ {[%clk 0:00:10.8]} 47... Qe7 {[%clk 0:00:11.1]}
48. Qf5+ {[%clk 0:00:11.1]} 48... Kc7 {[%clk 0:00:11]} 49. Kh3 {[%clk
0:00:11.1]} 49... Nf4+ {[%clk 0:00:08]} 50. Kh2 {[%clk 0:00:10]} 50... Nd5
{[%clk 0:00:06.9]} 51. Qg6 {[%clk 0:00:08.7]} 51... Bxg3+ {[%clk 0:00:04.7]} 52.
fxg3 {[%clk 0:00:09.6]} 52... Qe5 {[%clk 0:00:03.8]} 53. Qf7+ {[%clk 0:00:09.7]}
53... Kb6 {[%clk 0:00:04.3]} 54. Qf2+ {[%clk 0:00:09.7]} 54... c5 {[%clk
0:00:04.2]} 55. Qf8 {[%clk 0:00:09.9]} 55... Nc7 {[%clk 0:00:03.7]} 56. Qb8+
{[%clk 0:00:09.6]} 56... Kc6 {[%clk 0:00:04.3]} 57. Qf8 {[%clk 0:00:09.7]} 57...
Qd5 {[%clk 0:00:04.2]} 58. Qf6+ {[%clk 0:00:09.5]} 58... Kb7 {[%clk 0:00:04.7]}
59. Qf3 {[%clk 0:00:09.5]} 59... Qxf3 {[%clk 0:00:04.6]} 60. gxf3 {[%clk
0:00:10.4]} 60... Kc6 {[%clk 0:00:04.6]} 61. f4 {[%clk 0:00:10.7]} 61... Ne6
{[%clk 0:00:04.4]} 62. fxg5 {[%clk 0:00:09.1]} 62... Nxg5 {[%clk 0:00:04.7]} 63.
Kg2 {[%clk 0:00:10]} 63... Kd6 {[%clk 0:00:04.8]} 64. Kf2 {[%clk 0:00:10.7]}
64... Ke5 {[%clk 0:00:05.3]} 65. Ke3 {[%clk 0:00:11.6]} 65... Ne4 {[%clk
0:00:05.2]} 66. Kd3 {[%clk 0:00:11.6]} 66... Nxg3 {[%clk 0:00:04.9]} 67. Kc4
{[%clk 0:00:12.2]} 67... Ne4 {[%clk 0:00:04.1]} 68. Kb5 {[%clk 0:00:11.3]} 68...
Kd6 {[%clk 0:00:02.2]} 69. Kxa5 {[%clk 0:00:09.6]} 69... Nd2 {[%clk 0:00:02.7]}
70. Kb5 {[%clk 0:00:08.6]} 70... Nxb3 {[%clk 0:00:03]} 71. a5 {[%clk 0:00:09]}
71... Nd4+ {[%clk 0:00:03.4]} 72. Kc4 {[%clk 0:00:09]} 72... Nc6 {[%clk
0:00:03.3]} 73. a6 {[%clk 0:00:08.9]} 73... Na7 {[%clk 0:00:03.7]} 74. g5 {[%clk
0:00:08.5]} 74... Ke5 {[%clk 0:00:03.9]} 75. Kxc5 {[%clk 0:00:08.1]} 75... Kf5
{[%clk 0:00:04.4]} 76. Kb6 {[%clk 0:00:08.5]} 76... Nc8+ {[%clk 0:00:05]} 77.
Kb7 {[%clk 0:00:09]} 77... Nd6+ {[%clk 0:00:05.3]} 78. Kc6 {[%clk 0:00:09.5]}
78... Nc8 {[%clk 0:00:05.6]} 79. Kd7 {[%clk 0:00:09.7]} 79... Na7 {[%clk
0:00:05.5]} 80. Kc7 {[%clk 0:00:10.1]} 80... Kxg5 {[%clk 0:00:06]} 81. Kb6
{[%clk 0:00:10.5]} 81... Nc8+ {[%clk 0:00:06.4]} 82. Kb7 {[%clk 0:00:11.1]}
82... Nd6+ {[%clk 0:00:06.8]} 83. Kc7 {[%clk 0:00:11.5]} 83... Nb5+ {[%clk
0:00:07.1]} 84. Kb6 {[%clk 0:00:12]} 84... Nd6 {[%clk 0:00:07.5]} 85. Kc6 {[%clk
0:00:12.5]} 85... Nc8 {[%clk 0:00:07.7]} 86. Kb7 {[%clk 0:00:13.1]} 86... Nd6+
{[%clk 0:00:08]} 87. Kc7 {[%clk 0:00:13.6]} 87... Nb5+ {[%clk 0:00:08.2]} 88.
Kb6 {[%clk 0:00:14.4]} 88... Nd6 {[%clk 0:00:08.5]} 89. a7 {[%clk 0:00:14.7]}
89... Nc8+ {[%clk 0:00:08.8]} 90. Kb7 {[%clk 0:00:15.6]} 90... Nxa7 {[%clk
0:00:09.5]} 1/2-1/2

[Event "Early-Titled-Tuesday-Blitz-October-03-2023"]
[Site "Chess.com"]
[Date "2023.10.03"]
[Round "6"]
[White "Aariow"]
[Black "Javylavilla"]
[Result "1/2-1/2"]
[WhiteElo "2492"]
[BlackElo "2369"]
[TimeControl "180+1"]
[EndTime "9:08:41 PDT"]
[Termination "Game drawn by repetition"]

1. Nf3 {[%clk 0:03:00.9]} 1... Nf6 {[%clk 0:02:55.6]} 2. e3 {[%clk 0:03:00.5]}
2... c5 {[%clk 0:02:54.5]} 3. b3 {[%clk 0:03:00.2]} 3... Nc6 {[%clk 0:02:54.2]}
4. Bb2 {[%clk 0:02:59.9]} 4... g6 {[%clk 0:02:54.8]} 5. Bb5 {[%clk 0:02:52.6]}
5... Bg7 {[%clk 0:02:54.2]} 6. O-O {[%clk 0:02:51.3]} 6... O-O {[%clk
0:02:53.8]} 7. Bxc6 {[%clk 0:02:50.1]} 7... dxc6 {[%clk 0:02:45.4]} 8. h3 {[%clk
0:02:47]} 8... Qc7 {[%clk 0:02:26.5]} 9. Qe2 {[%clk 0:02:43.3]} 9... Rd8 {[%clk
0:02:23.6]} 10. Rd1 {[%clk 0:02:39.1]} 10... Bf5 {[%clk 0:02:23]} 11. d3 {[%clk
0:02:34.5]} 11... b5 {[%clk 0:02:21.5]} 12. Nbd2 {[%clk 0:02:34.2]} 12... a5
{[%clk 0:02:19.9]} 13. e4 {[%clk 0:02:32.1]} 13... Bc8 {[%clk 0:02:15.5]} 14.
Qe3 {[%clk 0:02:30.8]} 14... Ng4 {[%clk 0:01:45]} 15. hxg4 {[%clk 0:02:30.3]}
15... Bxb2 {[%clk 0:01:44.4]} 16. Rab1 {[%clk 0:02:30.2]} 16... Bg7 {[%clk
0:01:41.1]} 17. Qxc5 {[%clk 0:01:25.2]} 17... Bxg4 {[%clk 0:01:39.3]} 18. d4
{[%clk 0:01:23.6]} 18... Rac8 {[%clk 0:01:14.3]} 19. Qg5 {[%clk 0:01:06.2]}
19... h5 {[%clk 0:01:07.6]} 20. Nf1 {[%clk 0:00:43.1]} 20... Bf6 {[%clk
0:00:49.5]} 21. Qe3 {[%clk 0:00:40.6]} 21... Rd7 {[%clk 0:00:29.1]} 22. N1h2
{[%clk 0:00:23]} 22... Rcd8 {[%clk 0:00:28.7]} 23. e5 {[%clk 0:00:22.8]} 23...
Bg7 {[%clk 0:00:25.4]} 24. Nxg4 {[%clk 0:00:23]} 24... hxg4 {[%clk 0:00:26.3]}
25. Nh2 {[%clk 0:00:23.9]} 25... Bxe5 {[%clk 0:00:26.1]} 26. Nxg4 {[%clk
0:00:20.4]} 26... Bxd4 {[%clk 0:00:25.8]} 27. Qh3 {[%clk 0:00:14.1]} 27... Qf4
{[%clk 0:00:22.2]} 28. c3 {[%clk 0:00:08.3]} 28... Bc5 {[%clk 0:00:13.6]} 29.
Rxd7 {[%clk 0:00:07.8]} 29... Rxd7 {[%clk 0:00:14.5]} 30. Nf6+ {[%clk
0:00:08.5]} 30... exf6 {[%clk 0:00:11.6]} 31. Qxd7 {[%clk 0:00:09.4]} 31...
Qxf2+ {[%clk 0:00:11.9]} 32. Kh1 {[%clk 0:00:07.3]} 32... Qh4+ {[%clk
0:00:06.8]} 33. Qh3 {[%clk 0:00:07.8]} 33... Qe4 {[%clk 0:00:07.2]} 34. Rf1
{[%clk 0:00:06.6]} 34... Qe5 {[%clk 0:00:07.3]} 35. c4 {[%clk 0:00:04.3]} 35...
Kg7 {[%clk 0:00:07.5]} 36. cxb5 {[%clk 0:00:03.8]} 36... cxb5 {[%clk 0:00:08.4]}
37. Qd3 {[%clk 0:00:04.4]} 37... Bd6 {[%clk 0:00:07.9]} 38. g3 {[%clk
0:00:03.9]} 38... Qh5+ {[%clk 0:00:06.4]} 39. Kg2 {[%clk 0:00:03.5]} 39... Be5
{[%clk 0:00:07.3]} 40. Rh1 {[%clk 0:00:03.1]} 40... Qg5 {[%clk 0:00:07.7]} 41.
Rf1 {[%clk 0:00:02.2]} 41... f5 {[%clk 0:00:08]} 42. Rf3 {[%clk 0:00:02.2]}
42... Bf6 {[%clk 0:00:07.7]} 43. Qxb5 {[%clk 0:00:02.1]} 43... Qc1 {[%clk
0:00:07.7]} 44. Rf2 {[%clk 0:00:02.6]} 44... Qe3 {[%clk 0:00:07.4]} 45. g4
{[%clk 0:00:03]} 45... Bd4 {[%clk 0:00:07.4]} 46. Rf3 {[%clk 0:00:01.8]} 46...
Qe4 {[%clk 0:00:07.6]} 47. gxf5 {[%clk 0:00:02]} 47... g5 {[%clk 0:00:08]} 48.
f6+ {[%clk 0:00:02.4]} 48... Kg6 {[%clk 0:00:06.8]} 49. Qd3 {[%clk 0:00:01.7]}
49... Qxd3 {[%clk 0:00:05.7]} 50. Rxd3 {[%clk 0:00:02.6]} 50... Bxf6 {[%clk
0:00:06.3]} 51. Rd5 {[%clk 0:00:03.1]} 51... Bc3 {[%clk 0:00:06.3]} 52. Rc5
{[%clk 0:00:03.8]} 52... Bb4 {[%clk 0:00:06.4]} 53. Rc6+ {[%clk 0:00:04.5]}
53... f6 {[%clk 0:00:06.3]} 54. Kf3 {[%clk 0:00:04.6]} 54... Kf5 {[%clk
0:00:06.1]} 55. Rb6 {[%clk 0:00:05.2]} 55... g4+ {[%clk 0:00:06.3]} 56. Kg3
{[%clk 0:00:05.9]} 56... Kg5 {[%clk 0:00:06.7]} 57. Rb5+ {[%clk 0:00:05.6]}
57... f5 {[%clk 0:00:07.2]} 58. Rd5 {[%clk 0:00:04.1]} 58... Be1+ {[%clk
0:00:05.2]} 59. Kg2 {[%clk 0:00:04.8]} 59... Kf4 {[%clk 0:00:05.2]} 60. Rd1
{[%clk 0:00:05.5]} 60... Bc3 {[%clk 0:00:04.8]} 61. Rd3 {[%clk 0:00:05.7]} 61...
Be5 {[%clk 0:00:04.5]} 62. Rd5 {[%clk 0:00:05.3]} 62... Ke4 {[%clk 0:00:04.5]}
63. Rxa5 {[%clk 0:00:05.3]} 63... f4 {[%clk 0:00:04.9]} 64. Ra4+ {[%clk
0:00:05.9]} 64... Ke3 {[%clk 0:00:04.9]} 65. Ra5 {[%clk 0:00:02.8]} 65... f3+
{[%clk 0:00:05.1]} 66. Kf1 {[%clk 0:00:02.8]} 66... Bd4 {[%clk 0:00:05.4]} 67.
Rg5 {[%clk 0:00:03.1]} 67... Kf4 {[%clk 0:00:04.6]} 68. Rg8 {[%clk 0:00:03]}
68... g3 {[%clk 0:00:04.2]} 69. Rf8+ {[%clk 0:00:03.4]} 69... Ke3 {[%clk
0:00:03.7]} 70. Rg8 {[%clk 0:00:03.9]} 70... Kf4 {[%clk 0:00:02.9]} 71. a4
{[%clk 0:00:02]} 71... g2+ {[%clk 0:00:02.4]} 72. Rxg2 {[%clk 0:00:02.8]} 72...
fxg2+ {[%clk 0:00:03.1]} 73. Kxg2 {[%clk 0:00:03.7]} 73... Ke5 {[%clk
0:00:03.1]} 74. Kf3 {[%clk 0:00:03.8]} 74... Kd5 {[%clk 0:00:03.4]} 75. Ke2
{[%clk 0:00:04.6]} 75... Bc3 {[%clk 0:00:02.7]} 76. Kd3 {[%clk 0:00:05.2]} 76...
Bb4 {[%clk 0:00:02.7]} 77. Kc2 {[%clk 0:00:05.8]} 77... Kc5 {[%clk 0:00:03]} 78.
Kd3 {[%clk 0:00:06.3]} 78... Ba5 {[%clk 0:00:02.9]} 79. Ke4 {[%clk 0:00:07]}
79... Bb4 {[%clk 0:00:03.3]} 80. Kd3 {[%clk 0:00:07.3]} 80... Ba5 {[%clk
0:00:04.2]} 81. Kc2 {[%clk 0:00:06.8]} 81... Bb4 {[%clk 0:00:05.1]} 82. Kd3
{[%clk 0:00:07.3]} 1/2-1/2